Cogmind - Beta 13 @@@ ROGUE MODE // 2024.06.29 @ 14:35:40 Player: RAT Result: Destroyed by Y-45 Defender with Heavy Assault Rifle Performance ------------- Evolutions (1) 500 Regions Visited (4) 800 Robots Destroyed (24) 120 Value Destroyed (500) 500 Prototype IDs (0) 0 Alien Tech Used (0) 0 Bonus (0) 0 TOTAL SCORE: 1920 Bonus ------- None Cogmind --------- Core Integrity 0/400 Matter 295/300 Energy 100/100 System Corruption 0% Temperature Cool (9) Movement Core (100) Ox1 Location -9/Storage Parts ------- > --- POWER (1) -------- (None) > --- PROPULSION (3) --- (None) > --- UTILITY (3) ------ Small Storage Unit Visual Processing Unit > --- WEAPON (2) ------- (None) > --- INVENTORY (8) ---- (None) Peak State ------------ > --- POWER ------------ Light Ion Engine > --- PROPULSION ------- Light Treads Light Treads Aluminum Leg > --- UTILITY ---------- Small Storage Unit Weapon Shielding Medium Armor Plating > --- WEAPON ----------- Light Assault Rifle Light Assault Rifle > --- INVENTORY -------- Ion Engine Light Ion Engine [Rating: 10] Favorites ----------- Power Light Ion Engine Engine Light Ion Engine Propulsion Light Treads Treads Light Treads Leg Aluminum Leg Utility Small Storage Unit Device Improved Terrain Scanner Storage Small Storage Unit Processor Visual Processing Unit Protection Weapon Shielding Weapon Light Assault Rifle Energy Gun Small Laser Ballistic Gun Light Assault Rifle Build | -11 -10 -10 -9 -9 ------- Run | Yrd Mat Min Mat Sto Slots Evolved 2 | . . . 2 . Power . | . . . . . Propulsion 1 | . . . 1 . Utility 1 | . . . 1 . Weapon . | . . . . . Parts Attached 24 | 7 1 2 6 8 Power 5 | 2 . 1 . 2 Engine 5 | 2 . 1 . 2 Core . | . . . . . Reactor . | . . . . . Propulsion 6 | 2 . . 2 2 Treads 3 | . . . 2 1 Leg 3 | 2 . . . 1 Wheel . | . . . . . Hover . | . . . . . Flight . | . . . . . Utility 8 | 1 1 1 3 2 Device 1 | 1 . . . . Storage 1 | . . 1 . . Processor 2 | . . . 1 1 Hackware . | . . . . . Protection 4 | . 1 . 2 1 Artifact . | . . . . . Weapon 5 | 2 . . 1 2 Energy Gun 3 | . . . 1 2 Energy Cannon . | . . . . . Ballistic Gun 2 | 2 . . . . Ballistic Cannon . | . . . . . Launcher . | . . . . . Special Weapon . | . . . . . Impact Weapon . | . . . . . Slashing Weapon . | . . . . . Piercing Weapon . | . . . . . Special Melee Weapon . | . . . . . Unidentified Prototypes . | . . . . . Parts Lost 15 | . . 1 4 10 Power 3 | . . . . 3 Propulsion 4 | . . . 1 3 Utility 4 | . . 1 2 1 Weapon 4 | . . . 1 3 Highest Loss Streak 7 | . . 1 3 7 To Critical Strikes . | . . . . . Average Slot Usage (%) 76 | . 94 98 80 61 Engine 10 | . 14 14 11 7 Treads 11 | . . . 9 18 Leg 11 | . 28 28 11 . Device 2 | . 14 1 . . Storage 9 | . . 11 11 11 Processor 3 | . . . 1 6 Protection 7 | . 8 14 13 1 Energy Gun 7 | . . . 2 15 Ballistic Gun 13 | . 28 28 19 . Naked Turns . | . . . . . Heaviest Build 18 | 8 9 11 18 15 Greatest Support 40 | 20 20 20 40 40 Greatest Overweight (x) 3 | . . . 1 3 Average Overweight (x) . | . . . . . Largest Inventory Capacity 8 | 5 5 8 8 8 Average Capacity 7 | 5 5 7 8 8 Most Carried 6 | 5 4 4 6 5 Average Carried 3 | 3 3 3 3 3 Final Capacity 8 | 5 5 8 8 8 Final Carried 4 | 3 4 3 4 . Class Distribution -------------------- 100% | Mutant Dominant Class ---------------- Mutant | -10/Materials Mutant | -10/Mines Mutant | -9/Materials Mutant | -9/Storage Resources | -11 -10 -10 -9 -9 ----------- Run | Yrd Mat Min Mat Sto Matter Collected 497 | 227 85 15 120 50 Remotely . | . . . . . Salvage Created 748 | 26 127 42 297 256 Parts 47 | 3 9 7 14 14 Haulers Intercepted . | . . . . . Recyclers Shooed 2 | . 1 . 1 . Parts Field Recycled . | . . . . . Retrieved Matter . | . . . . . Parts Self-Destructed . | . . . . . Prevented . | . . . . . Kills | -11 -10 -10 -9 -9 ------- Run | Yrd Mat Min Mat Sto Combat Hostiles Destroyed 20 | . 3 3 6 8 Guns 20 | . 3 3 6 8 Classes Destroyed 8 | 1 2 . 4 1 Builder 1 | . . . 1 . Tunneler 1 | 1 . . . . Recycler 1 | . 1 . . . Watcher 1 | . . . . 1 Swarmer 10 | . 3 3 . 4 Grunt 6 | . . . 3 3 Brawler 2 | . . . 1 1 Sentry 2 | . . . 2 . Best Kill Streak 5 | 1 4 3 4 5 Combat Bots Only 4 | . 3 3 4 4 Max Kills in Single Turn 1 | 1 1 1 1 1 Gunslinging . | . . . . . Exploded . | . . . . . Melee . | . . . . . Uniques/NPCs Destroyed . | . . . . . Combat | -11 -10 -10 -9 -9 -------- Run | Yrd Mat Min Mat Sto Hostile Shots Fired 201 | . 41 13 45 102 Missed 58 | . 12 3 11 32 Damage Taken 1719 | . 242 79 501 897 Core 485 | . 61 14 72 338 Absorbed by Shields . | . . . . . Redirected to Shielding 51 | . 20 3 28 . Core Remaining (%) 85 | 100 . 70 . . Volleys Fired 95 | 3 13 5 36 38 Largest 2 | 2 2 2 2 2 Hottest 85 | 40 40 40 60 85 Shots Fired 170 | 6 26 10 72 56 Gun 170 | 6 26 10 72 56 Cannon . | . . . . . Launcher . | . . . . . Special . | . . . . . Kinetic 103 | 6 26 10 61 . Thermal 49 | . . . 11 38 Explosive . | . . . . . Electromagnetic 18 | . . . . 18 Robot Hit Streak 17 | 2 8 6 17 13 Robot Miss Streak 6 | 1 5 1 5 6 Penetration Max . | . . . . . Secondary Targets 5 | . 1 2 . 2 Max Gunslinging Chain 1 | . 1 1 . 1 Shots Hit Robots 113 | 3 16 7 50 37 Core Hits 50 | 2 6 6 20 16 Critical Kills 1 | . 1 . . . Critical Parts Destroyed 2 | . . . 2 . Critical Strikes 3 | . 1 . 2 . Destroy 3 | . 1 . 2 . Melee Attacks . | . . . . . Impact . | . . . . . Slashing . | . . . . . Piercing . | . . . . . Sneak Attacks . | . . . . . Combat Hostiles . | . . . . . Follow-up Attacks . | . . . . . Damage Inflicted 1144 | 38 132 64 434 476 Guns 1112 | 38 132 63 434 445 Cannons . | . . . . . Explosions 31 | . . . . 31 Melee . | . . . . . Ramming 1 | . . 1 . . Kinetic 578 | 38 132 63 345 . Thermal 388 | . . . 89 299 Explosive . | . . . . . Electromagnetic 177 | . . . . 177 Impact . | . . . . . Slashing . | . . . . . Piercing . | . . . . . Highest Corruption . | . . . . . Average Corruption . | . . . . . Corruption Purged . | . . . . . Corruption Blocked . | . . . . . Overload Shots . | . . . . . Overflow Damage . | . . . . . Projectiles . | . . . . . Explosions . | . . . . . Melee . | . . . . . Knockbacks . | . . . . . Impact . | . . . . . Kinetic . | . . . . . Secondary . | . . . . . Self-Inflicted Damage . | . . . . . Shots . | . . . . . Rammed . | . . . . . Targets Rammed 1 | . . 1 . . Kicked 1 | . . 1 . . Crushed . | . . . . . Highest Temperature 193 | . . . 40 193 Average Temperature 51 | . . . 16 81 Received Heat Transfer 477 | . 12 . 165 300 Siege Activations . | . . . . . Robots Corrupted . | . . . . . Combat Hostiles . | . . . . . Parts Fried . | . . . . . Impact Corruptions . | . . . . . Robots Melted . | . . . . . Combat Hostiles . | . . . . . Parts Melted 1 | . . . . 1 Heat Transferred 850 | . . . 200 650 Parts Sabotaged . | . . . . . Parts Stolen . | . . . . . Parts Stripped . | . . . . . Power Chain Reactions 1 | . . . . 1 Alert | -11 -10 -10 -9 -9 ------- Run | Yrd Mat Min Mat Sto Peak Influence 267 | 5 78 90 230 267 Initial 96 | . 3 30 35 96 Average 113 | 1 26 86 124 162 Maximum Alert Level 1 | . . . 1 1 Low Security (%) 85 | 100 100 100 83 76 Level 1 14 | . . . 16 23 Level 2 . | . . . . . Level 3 . | . . . . . Level 4 . | . . . . . Level 5 . | . . . . . High Security . | . . . . . Max Security . | . . . . . Squads Dispatched 4 | . 1 . 3 . Investigation 1 | . . . 1 . Extermination . | . . . . . Reinforcement 3 | . 1 . 2 . Assault . | . . . . . Garrison . | . . . . . Intercept . | . . . . . Searches Triggered . | . . . . . Construction Impeded . | . . . . . Haulers Reinforced . | . . . . . Active Scanning Responses . | . . . . . Cargo Convoy Interrupts . | . . . . . Stealth | -11 -10 -10 -9 -9 --------- Run | Yrd Mat Min Mat Sto Distress Signals 3 | . 1 . 1 1 Communications Jammed . | . . . . . Distress Signals . | . . . . . Times Spotted 31 | . 6 3 9 13 Peak Tracking Total 5 | . 4 3 4 5 Tactical Retreats 1 | . . . 1 . Traps | -11 -10 -10 -9 -9 ------- Run | Yrd Mat Min Mat Sto Traps Triggered 3 | . . . 1 2 Indirectly . | . . . . . Trap Hack Attempts . | . . . . . Triggered . | . . . . . Disarmed . | . . . . . Reprogrammed . | . . . . . Reused . | . . . . . Traps Extracted . | . . . . . Installed . | . . . . . Triggered . | . . . . . Machines | -11 -10 -10 -9 -9 ---------- Run | Yrd Mat Min Mat Sto Machines Disabled . | . . . . . Max in Single Turn . | . . . . . Machines Repaired . | . . . . . Machines Dismantled . | . . . . . Machines Sabotaged . | . . . . . Overloaded Fab Kills . | . . . . . Hacking | -11 -10 -10 -9 -9 --------- Run | Yrd Mat Min Mat Sto Machines Accessed 1 | . . . 1 . Terminals 1 | . . . 1 . Fabricators . | . . . . . Repair Stations . | . . . . . Recycling Units . | . . . . . Scanalyzers . | . . . . . Garrison Access . | . . . . . Total Hacks 1 | . . . 1 . Successful 1 | . . . 1 . Failed . | . . . . . Catastrophic . | . . . . . Database Lockouts . | . . . . . Manual . | . . . . . Terminals 1 | . . . 1 . Fabricators . | . . . . . Repair Stations . | . . . . . Recycling Units . | . . . . . Scanalyzers . | . . . . . Garrison Access . | . . . . . Terminal Hacks 1 | . . . 1 . Alert Level 1 | . . . 1 . Fabricator Hacks . | . . . . . Repair Station Hacks . | . . . . . Recycling Unit Hacks . | . . . . . Scanalyzer . | . . . . . Garrison Access Hacks . | . . . . . Unauthorized Hacks . | . . . . . Terminals . | . . . . . Fabricators . | . . . . . Repair Stations . | . . . . . Recycling Units . | . . . . . Scanalyzers . | . . . . . Garrison Access . | . . . . . Data Cores Recovered . | . . . . . Used . | . . . . . Hacking Detections . | . . . . . Full Trace Events . | . . . . . Feedback Events . | . . . . . Feedback Blocked . | . . . . . Robot Schematics Acquired . | . . . . . Robots Built . | . . . . . Authchips . | . . . . . Time . | . . . . . Total Robot Build Rating . | . . . . . Part Schematics Acquired . | . . . . . Parts Built . | . . . . . Authchips . | . . . . . Time . | . . . . . Total Part Build Rating . | . . . . . Parts Repaired . | . . . . . Time . | . . . . . Parts Recycled . | . . . . . Recycled Matter . | . . . . . Retrieved Matter . | . . . . . Retrieved Components . | . . . . . Parts Scanalyzed . | . . . . . Part Schematics Acquired . | . . . . . Parts Damaged . | . . . . . Bothacking | -11 -10 -10 -9 -9 ------------ Run | Yrd Mat Min Mat Sto Used RIF Installer . | . . . . . Robots Hacked . | . . . . . Non-combat . | . . . . . Combat . | . . . . . Robot Hacks Applied . | . . . . . Relay Couplers Released . | . . . . . Fabnet Peak Effective % . | . . . . . Robots Rewired . | . . . . . Allies Hacked . | . . . . . Hacks Repelled . | . . . . . Allies | -11 -10 -10 -9 -9 -------- Run | Yrd Mat Min Mat Sto Total Allies . | . . . . . Largest Group . | . . . . . Highest-Rated Group . | . . . . . Highest-Rated Ally . | . . . . . Total Orders . | . . . . . Ally Attacks . | . . . . . Total Damage . | . . . . . Kills . | . . . . . Allies Corrupted . | . . . . . Allies Melted . | . . . . . Intel | -11 -10 -10 -9 -9 ------- Run | Yrd Mat Min Mat Sto Robot Analysis Total . | . . . . . Derelict Logs Recovered . | . . . . . Drone Launches . | . . . . . Drone Recoveries . | . . . . . Exploration | -11 -10 -10 -9 -9 ------------- Run | Yrd Mat Min Mat Sto Turns Passed 1054 | 75 131 109 338 401 Spaces Moved 560 | 48 79 76 167 190 Core 43 | 8 . . . 35 Treads 213 | . . . 59 154 Legs 304 | 40 79 76 108 1 Wheels . | . . . . . Hover . | . . . . . Flight . | . . . . . Fastest Speed 50 | 50 120 120 120 100 Average Speed 134 | 108 120 120 134 152 Slowest Speed 200 | 120 120 120 190 200 Overloaded Moves . | . . . . . Propulsion Burnouts . | . . . . . Robots Hopped . | . . . . . Cave-ins Triggered . | . . . . . Exploration Rate (%) 21 | 3 28 24 22 31 Regions Visited 4 Branch Regions 2 Pre-discovered Areas . | . . . . . Known Exits Taken 1 | . . . 1 . Unknown Exits Taken 3 | 1 1 1 . . Scrap Searched . | . . . . . Spaces Dug . | . . . . . Terrain Destroyed 2 | . . . . 2 Melee . | . . . . . Projectile . | . . . . . AOE 2 | . . . . 2 Terrain Rammed . | . . . . . Walls Destroyed . | . . . . . Machines Disabled . | . . . . . Actions | -11 -10 -10 -9 -9 --------- Run | Yrd Mat Min Mat Sto Total 711 | 66 94 85 220 246 Wait 11 | . . . 5 6 Move 556 | 47 78 75 166 190 Hop . | . . . . . Pick Up 21 | 8 2 1 6 4 Fast Attach 1 | 1 . . . . Attach 21 | 5 1 1 6 8 Detach 1 | . . . 1 . Swap 2 | 1 . 1 . . Drop 2 | 1 . 1 . . Fire 95 | 3 13 5 36 38 Melee . | . . . . . Ram . | . . . . . Kick 1 | . . 1 . . Crush . | . . . . . Escape Stasis . | . . . . . Rewire . | . . . . . Trap . | . . . . . Miscellaneous . | . . . . . Route ------- -11/Scrapyard -10/Materials -10/Mines -9/Materials -9/Storage History --------- Turn | Location | Event 9 | -11/Scrapyard | Discovered new exit (range 15) 76 | -11/Scrapyard | Entered Materials 192 | -10/Materials | Discovered new exit (range 13) 207 | -10/Materials | Entered Mines 302 | -10/Mines | Discovered new exit (range 12) 305 | -10/Mines | Build established: Mutant 316 | -10/Mines | Entered Materials 316 | -9/Materials | Evolved 2 slots: Propulsion x1, Utility x1 608 | -9/Materials | Discovered new exit (range 14) 617 | -9/Materials | Lost 3 parts (2u1w) 649 | -9/Materials | Identified exit to Storage 654 | -9/Materials | Entered Storage 1023 | -9/Storage | Core integrity fell below 50% 1047 | -9/Storage | Core integrity fell below 20% 1055 | -9/Storage | Destroyed by Y-45 Defender with Heavy Assault Rifle Last Messages --------------- 01001_ K-01 Serf collects debris. 01004_ Lgt. Treads destroyed. 01005_ K-01 Serf collects debris. 01007_ Hvy. EM Pulse Gun destroyed. 01008_ Acquired 10 matter. 01008_ K-01 Serf collects debris. 01008_ K-01 Serf cleans the Terminal. 01011_ R-06 Scavenger collects Lgt. Ion Engine. 01012_ K-01 Serf collects debris. 01013_ Critical hit (Burn: +37). 01015_ R-06 Scavenger collects Lgt. Assault Rifle. 01017_ K-01 Serf collects debris. 01019_ Critical hit (Burn: +37). 01019_ R-06 Scavenger collects Flight Unit. 01021_ K-01 Serf collects debris. 01022_ R-06 Scavenger collects Flight Unit. 01025_ Lgt. Ion Engine destroyed. 01043_ Aluminum Leg destroyed. 01049_ Critical hit (Burn: +37). Map ----- +----------------------------------------------------+ | ##### # #??????????????????? | | #####+######??????????????????? | | ## #??????????????????? | | ## """" #??????????????????? | | ## ???"" # "????????????????? | | ## ????"" # ""???????????????? | | ## "????" # ??????????????? | | ## "???" # "??????????????? | | ## """" #? ????????"???##? | | ## #?? ""??????? ? # | | ######+#####??? ??????? #? | | ####! #####+#+###?? #? | | % % # #? | | T% * % + """ ""???? | | ^ % # """ ""???? | | # ##^ #########*#??"" ""???? | | # ########???????# #???? ??? | | # #?????????????## ###+##+##??? | | ? #?????????????# ## #???? | | ??#?????????????# Y#???? | | ????????????????# #####Y#???? | | ????????????????##+##???# #???? | | ????????????????# T???# #???? | | ????????????????#"""##??# #???? | | ????????????????????????# #???? | | ????????????????????????#@#???? | | ????????????????????????# #???? | | ????????????????????????# #???? | | ????????????????????????# #???? | | ????????????????????????# #???? | | ????????????????????????# #???? | | ????????????????????????# #???? | | ????????????????????????# #???? | | ????????????????????????# #???? | | ????????????????????????# #???? | | ????????????????????????? ????? | | ?????????????????????????Y????? | | ?????????????????????????Y????? | | ????????????????????????? ????? | | ????????????????????????? ????? | | ????????????????????????? ????? | | ????????????????????????? ????? | | ????????????????????????? ????? | | ??????????????????????????????? | | ??????????????????????????????? | | ??????????????????????????????? | | ??????????????????????????????? | | ??????????????????????????????? | | ??????????????????????????????? | | ??????????????????????????????? | +----------------------------------------------------+ Best States ------------- Heat Dissipation 28 Energy Generation 10 Energy Capacity 250 Matter Stores 300 Matter Capacity 300 Sight Range 18 Terrain Scan Range 16 Terrain Scan Density 10 Armor Coverage 225 Weapon Shielding 33 Evasion (%) 55 Recoil Reduction 2 Item Schematics ----------------- None Robot Schematics ------------------ None Fabricated ------------ Nothing Alien Tech Used ----------------- None Achievements -------------- None Challenges ------------ None Game ------ Seed ConcussiveArmageddonBrace Manual? 0 Play Time 00:13:49 Cumulative 13.5 hours Start 2024.06.29 @ 14:24:53 End 2024.06.29 @ 14:35:40 Sessions 1 Manual Loads 0 Difficulty Rogue Special Mode None Game No. 63 Rogue 63 Adventurer 0 Explorer 0 Win Type - Total 0 Types 0/0/0/0/0/0/0/0/0 Lore% 5 Gallery% 18 Achievement% 13 Wizard Run 0 Options --------- Layout 1 ASCII 0 Keyboard 0 Movement Mouse Keybinds 0 Fullscreen 1 Font 24/Smallcaps Map View 50x35 Zoom Use 0% Tactical HUD 1 Map Filters NONE Filters NONE Steam 1 RUN: 82e7a0d5-60bc-488e-ba1f-3ad5174cb66d